[Event "*** SCC Grand Prix: Titled Tuesday Blitz"]
[Site "Chess.com"]
[Date "2020.10.06"]
[Round "6"]
[White "banane_verte"]
[Black "tdf98pantani"]
[Result "0-1"]
[WhiteElo "2458"]
[BlackElo "2725"]
[TimeControl "180+1"]
[EndTime "11:08:44 PDT"]
[Termination "tdf98pantani won on time"]

1. e4 {[%clk 0:03:00.9]} 1... c6 {[%clk 0:02:59.2]} 2. d4 {[%clk 0:03:00.3]}
2... d5 {[%clk 0:02:59.4]} 3. Nc3 {[%clk 0:03:00.9]} 3... dxe4 {[%clk 0:02:59]}
4. Nxe4 {[%clk 0:03:01.8]} 4... Bf5 {[%clk 0:02:59.2]} 5. Ng3 {[%clk 0:03:01]}
5... Bg6 {[%clk 0:02:59.5]} 6. h4 {[%clk 0:03:01.7]} 6... h6 {[%clk 0:02:59.5]}
7. Nf3 {[%clk 0:03:02.4]} 7... Nd7 {[%clk 0:02:59]} 8. h5 {[%clk 0:03:02.7]}
8... Bh7 {[%clk 0:02:59.4]} 9. Bd3 {[%clk 0:03:03.4]} 9... Bxd3 {[%clk
0:02:59.5]} 10. Qxd3 {[%clk 0:03:04.3]} 10... e6 {[%clk 0:03:00]} 11. Bf4 {[%clk
0:03:05]} 11... Qa5+ {[%clk 0:02:59.1]} 12. Bd2 {[%clk 0:03:04.8]} 12... Bb4
{[%clk 0:02:58.7]} 13. c3 {[%clk 0:03:05.3]} 13... Be7 {[%clk 0:02:58.8]} 14.
Ne4 {[%clk 0:03:05]} 14... Ngf6 {[%clk 0:02:58.4]} 15. c4 {[%clk 0:03:00.7]}
15... Qc7 {[%clk 0:02:56.5]} 16. O-O-O {[%clk 0:02:55.3]} 16... Rd8 {[%clk
0:02:54.8]} 17. Qe2 {[%clk 0:02:47.5]} 17... O-O {[%clk 0:02:52.7]} 18. Kb1
{[%clk 0:02:35]} 18... Nxe4 {[%clk 0:02:51.9]} 19. Qxe4 {[%clk 0:02:34.8]} 19...
Nf6 {[%clk 0:02:52.3]} 20. Qe2 {[%clk 0:02:35]} 20... c5 {[%clk 0:02:52.1]} 21.
Bc3 {[%clk 0:02:25.2]} 21... cxd4 {[%clk 0:02:37.4]} 22. Nxd4 {[%clk 0:02:24.5]}
22... Qf4 {[%clk 0:02:29.9]} 23. f3 {[%clk 0:01:53.9]} 23... Bc5 {[%clk
0:02:23.8]} 24. Nb3 {[%clk 0:01:41.1]} 24... Bb6 {[%clk 0:02:13.4]} 25. g4
{[%clk 0:01:31.1]} 25... Bc7 {[%clk 0:02:03.4]} 26. Nd4 {[%clk 0:01:17.1]} 26...
a6 {[%clk 0:02:01.7]} 27. Ka1 {[%clk 0:01:10.2]} 27... Rfe8 {[%clk 0:01:54]} 28.
Rhe1 {[%clk 0:01:06.5]} 28... Bb6 {[%clk 0:01:41.4]} 29. Nc2 {[%clk 0:01:02.3]}
29... Rxd1+ {[%clk 0:01:37.3]} 30. Rxd1 {[%clk 0:01:03.2]} 30... e5 {[%clk
0:01:36.9]} 31. Bd2 {[%clk 0:00:53.4]} 31... Qg3 {[%clk 0:01:36.8]} 32. Be3
{[%clk 0:00:48.8]} 32... Bxe3 {[%clk 0:01:31.8]} 33. Nxe3 {[%clk 0:00:48.3]}
33... e4 {[%clk 0:01:31.5]} 34. Rf1 {[%clk 0:00:18.5]} 34... exf3 {[%clk
0:01:18.8]} 35. Rxf3 {[%clk 0:00:19.4]} 35... Qg1+ {[%clk 0:01:19.1]} 36. Qd1
{[%clk 0:00:08.3]} 36... Qxd1+ {[%clk 0:01:16.2]} 37. Nxd1 {[%clk 0:00:09.2]}
37... Nxg4 {[%clk 0:01:14.7]} 38. Kb1 {[%clk 0:00:05.2]} 38... Re5 {[%clk
0:01:05.3]} 39. Nc3 {[%clk 0:00:04.9]} 39... Rxh5 {[%clk 0:01:05]} 40. b4 {[%clk
0:00:05.5]} 40... Ne5 {[%clk 0:01:03.3]} 41. Rf4 {[%clk 0:00:04.5]} 41... Nd3
{[%clk 0:00:59]} 42. Rd4 {[%clk 0:00:03.9]} 42... Nxb4 {[%clk 0:00:58.8]} 43.
Rd8+ {[%clk 0:00:03.9]} 43... Kh7 {[%clk 0:00:58.7]} 44. Rd7 {[%clk 0:00:04.8]}
44... b5 {[%clk 0:00:57]} 45. cxb5 {[%clk 0:00:04.6]} 45... axb5 {[%clk
0:00:57.5]} 46. Rxf7 {[%clk 0:00:05.5]} 46... Nd3 {[%clk 0:00:53]} 47. Rb7
{[%clk 0:00:04.9]} 47... b4 {[%clk 0:00:53]} 48. Ne2 {[%clk 0:00:02.2]} 48...
Rh2 {[%clk 0:00:50.4]} 49. Nd4 {[%clk 0:00:02]} 49... Rb2+ {[%clk 0:00:48.8]}
50. Ka1 {[%clk 0:00:02.4]} 50... Rf2 {[%clk 0:00:44]} 51. Kb1 {[%clk 0:00:02.9]}
51... h5 {[%clk 0:00:42.5]} 52. Nc6 {[%clk 0:00:02.9]} 52... h4 {[%clk
0:00:41.9]} 53. Nxb4 {[%clk 0:00:03.3]} 53... Rb2+ {[%clk 0:00:41]} 54. Ka1
{[%clk 0:00:03.9]} 54... Rxb4 {[%clk 0:00:41.6]} 55. Rd7 {[%clk 0:00:03.3]}
55... Nf4 {[%clk 0:00:37.8]} 56. Rd2 {[%clk 0:00:02.2]} 56... h3 {[%clk
0:00:37.4]} 57. a3 {[%clk 0:00:03.1]} 57... Re4 {[%clk 0:00:37.2]} 58. Ka2
{[%clk 0:00:01.7]} 58... Re2 {[%clk 0:00:37]} 0-1

[Event "*** SCC Grand Prix: Titled Tuesday Blitz"]
[Site "Chess.com"]
[Date "2020.10.06"]
[Round "6"]
[White "fabianvivasz"]
[Black "Deepweb2020"]
[Result "1-0"]
[WhiteElo "2356"]
[BlackElo "2225"]
[TimeControl "180+1"]
[EndTime "11:08:46 PDT"]
[Termination "fabianvivasz won by checkmate"]

1. e4 {[%clk 0:02:59.8]} 1... e5 {[%clk 0:02:59.9]} 2. Nf3 {[%clk 0:02:59.6]}
2... Nc6 {[%clk 0:03:00.3]} 3. d4 {[%clk 0:02:58.3]} 3... exd4 {[%clk
0:03:01.2]} 4. Bc4 {[%clk 0:02:58.1]} 4... Bc5 {[%clk 0:03:01.5]} 5. c3 {[%clk
0:02:57.5]} 5... Nf6 {[%clk 0:03:01.2]} 6. e5 {[%clk 0:02:57.5]} 6... d5 {[%clk
0:03:01.3]} 7. Bb5 {[%clk 0:02:57.8]} 7... Ne4 {[%clk 0:03:00.6]} 8. cxd4 {[%clk
0:02:57.3]} 8... Bb6 {[%clk 0:03:00.7]} 9. Nc3 {[%clk 0:02:57.2]} 9... O-O
{[%clk 0:02:59.9]} 10. Be3 {[%clk 0:02:40.6]} 10... Bg4 {[%clk 0:02:59.2]} 11.
Qc2 {[%clk 0:02:37.4]} 11... Bf5 {[%clk 0:02:40]} 12. Qb3 {[%clk 0:02:28.5]}
12... Ne7 {[%clk 0:02:20.7]} 13. O-O {[%clk 0:02:21.3]} 13... c6 {[%clk
0:02:14.8]} 14. Bd3 {[%clk 0:01:52.1]} 14... Nxc3 {[%clk 0:02:05.6]} 15. Qxc3
{[%clk 0:01:53]} 15... f6 {[%clk 0:01:59.6]} 16. Rfe1 {[%clk 0:01:39.1]} 16...
Bc7 {[%clk 0:01:51]} 17. Bf4 {[%clk 0:01:29.2]} 17... Bxd3 {[%clk 0:01:42.4]}
18. Qxd3 {[%clk 0:01:29.2]} 18... Ng6 {[%clk 0:01:36.3]} 19. Bg3 {[%clk
0:01:23.7]} 19... Re8 {[%clk 0:01:17.8]} 20. Qf5 {[%clk 0:00:57.3]} 20... Rf8
{[%clk 0:00:51.5]} 21. e6 {[%clk 0:00:43.1]} 21... Bxg3 {[%clk 0:00:47.6]} 22.
hxg3 {[%clk 0:00:41.6]} 22... Qd6 {[%clk 0:00:42.7]} 23. Re3 {[%clk 0:00:32]}
23... Rfe8 {[%clk 0:00:33.8]} 24. Rae1 {[%clk 0:00:30.7]} 24... Re7 {[%clk
0:00:33.6]} 25. g4 {[%clk 0:00:20.5]} 25... Qf4 {[%clk 0:00:28.7]} 26. g3 {[%clk
0:00:16.8]} 26... Qxf5 {[%clk 0:00:21.6]} 27. gxf5 {[%clk 0:00:17.7]} 27... Nf8
{[%clk 0:00:20.7]} 28. g4 {[%clk 0:00:18]} 28... Rae8 {[%clk 0:00:20.6]} 29. Nd2
{[%clk 0:00:17.9]} 29... g6 {[%clk 0:00:21]} 30. f3 {[%clk 0:00:17.4]} 30... Kg7
{[%clk 0:00:21]} 31. Kf2 {[%clk 0:00:17.3]} 31... h5 {[%clk 0:00:17.4]} 32. Rg1
{[%clk 0:00:08.6]} 32... b6 {[%clk 0:00:14.6]} 33. gxh5 {[%clk 0:00:08]} 33...
g5 {[%clk 0:00:14.6]} 34. f4 {[%clk 0:00:06.6]} 34... Nh7 {[%clk 0:00:11.4]} 35.
Nf3 {[%clk 0:00:04.9]} 35... Kh6 {[%clk 0:00:11.4]} 36. fxg5+ {[%clk 0:00:05]}
36... Nxg5 {[%clk 0:00:08.5]} 37. Nxg5 {[%clk 0:00:05.3]} 37... fxg5 {[%clk
0:00:08.8]} 38. Kf3 {[%clk 0:00:03.3]} 38... g4+ {[%clk 0:00:02.1]} 39. Kf4
{[%clk 0:00:02.2]} 39... Rf8 {[%clk 0:00:01.6]} 40. Rxg4 {[%clk 0:00:02.4]}
40... Kxh5 {[%clk 0:00:02.1]} 41. Rh3# {[%clk 0:00:01.8]} 1-0

[Event "*** SCC Grand Prix: Titled Tuesday Blitz"]
[Site "Chess.com"]
[Date "2020.10.06"]
[Round "6"]
[White "Mikhail_Golubev"]
[Black "AniJak"]
[Result "1-0"]
[WhiteElo "2518"]
[BlackElo "2371"]
[TimeControl "180+1"]
[EndTime "11:08:47 PDT"]
[Termination "Mikhail_Golubev won by resignation"]

1. e4 {[%clk 0:03:00.9]} 1... c6 {[%clk 0:02:58.7]} 2. d4 {[%clk 0:03:00.1]}
2... d5 {[%clk 0:02:59.1]} 3. Nc3 {[%clk 0:03:00.6]} 3... dxe4 {[%clk
0:02:59.1]} 4. Nxe4 {[%clk 0:03:01.5]} 4... Nf6 {[%clk 0:02:59.4]} 5. Ng3 {[%clk
0:02:58.3]} 5... h5 {[%clk 0:02:58]} 6. h4 {[%clk 0:02:48.5]} 6... Bg4 {[%clk
0:02:56]} 7. Be2 {[%clk 0:02:42.6]} 7... Bxe2 {[%clk 0:02:55.6]} 8. N1xe2 {[%clk
0:02:41.8]} 8... e6 {[%clk 0:02:55.7]} 9. Bg5 {[%clk 0:02:34.8]} 9... Nbd7
{[%clk 0:02:46]} 10. Qd2 {[%clk 0:02:34.1]} 10... Qb6 {[%clk 0:02:35.6]} 11.
O-O-O {[%clk 0:02:33.8]} 11... O-O-O {[%clk 0:02:33.9]} 12. Kb1 {[%clk
0:02:33.3]} 12... Ba3 {[%clk 0:02:30.4]} 13. c4 {[%clk 0:02:30]} 13... c5 {[%clk
0:02:02.9]} 14. Ka1 {[%clk 0:02:03.7]} 14... Bb4 {[%clk 0:02:01]} 15. dxc5
{[%clk 0:02:03.7]} 15... Nxc5 {[%clk 0:01:59.2]} 16. Qc2 {[%clk 0:02:00.4]}
16... Na6 {[%clk 0:01:54.1]} 17. Ne4 {[%clk 0:01:39.5]} 17... Be7 {[%clk
0:01:48.6]} 18. Be3 {[%clk 0:01:34.9]} 18... Qa5 {[%clk 0:01:43.8]} 19. Ng5
{[%clk 0:01:22.6]} 19... Rhf8 {[%clk 0:01:20.7]} 20. Rxd8+ {[%clk 0:01:11.4]}
20... Bxd8 {[%clk 0:01:20.4]} 21. Nc3 {[%clk 0:01:08.1]} 21... Ng4 {[%clk
0:01:01.7]} 22. Bxa7 {[%clk 0:00:55]} 22... Nb4 {[%clk 0:01:01.1]} 23. Qa4
{[%clk 0:00:53.9]} 23... Nc6 {[%clk 0:00:29]} 24. Qxa5 {[%clk 0:00:51.2]} 24...
Bxa5 {[%clk 0:00:27.7]} 25. Bc5 {[%clk 0:00:50.2]} 25... Rd8 {[%clk 0:00:23.4]}
26. Nxf7 {[%clk 0:00:48.9]} 26... Rd2 {[%clk 0:00:23]} 27. Nd6+ {[%clk
0:00:46.3]} 27... Kb8 {[%clk 0:00:20.7]} 28. Nde4 {[%clk 0:00:45.2]} 28... Rd8
{[%clk 0:00:17]} 29. f3 {[%clk 0:00:39.5]} 29... Nf6 {[%clk 0:00:15.1]} 30. a3
{[%clk 0:00:35.3]} 30... Nxe4 {[%clk 0:00:14.1]} 31. Nxe4 {[%clk 0:00:35.3]}
31... Ne5 {[%clk 0:00:14.3]} 32. Bd6+ {[%clk 0:00:32.4]} 32... Bc7 {[%clk
0:00:13.7]} 33. Bxc7+ {[%clk 0:00:30.4]} 33... Kxc7 {[%clk 0:00:14.6]} 34. Ng5
{[%clk 0:00:30.5]} 34... Re8 {[%clk 0:00:13.5]} 35. Re1 {[%clk 0:00:30.2]} 35...
Nxc4 {[%clk 0:00:13.2]} 36. Rxe6 {[%clk 0:00:28.8]} 36... Kd7 {[%clk 0:00:11.5]}
37. Rxe8 {[%clk 0:00:27.1]} 37... Kxe8 {[%clk 0:00:12.4]} 38. Kb1 {[%clk
0:00:25.8]} 38... Ne3 {[%clk 0:00:12.5]} 39. g3 {[%clk 0:00:24.3]} 39... Nf5
{[%clk 0:00:12.7]} 40. Ne4 {[%clk 0:00:23.9]} 40... Nd4 {[%clk 0:00:13]} 41. f4
{[%clk 0:00:23.8]} 41... Nf3 {[%clk 0:00:13.1]} 42. Kc2 {[%clk 0:00:22.5]} 42...
Kd7 {[%clk 0:00:13.4]} 43. Kc3 {[%clk 0:00:22.5]} 43... Kc6 {[%clk 0:00:13.9]}
44. Kd3 {[%clk 0:00:19.6]} 44... Ne1+ {[%clk 0:00:14.8]} 45. Ke2 {[%clk
0:00:19.2]} 45... Nc2 {[%clk 0:00:15.1]} 46. Kd2 {[%clk 0:00:19.1]} 46... Na1
{[%clk 0:00:15.2]} 47. Kc3 {[%clk 0:00:18.7]} 47... b5 {[%clk 0:00:14.5]} 48.
Nd2 {[%clk 0:00:17.9]} 48... Kd5 {[%clk 0:00:15.4]} 49. b4 {[%clk 0:00:17.9]}
49... g6 {[%clk 0:00:14.3]} 50. Kb2 {[%clk 0:00:17.9]} 50... Kd4 {[%clk
0:00:14.8]} 51. Kxa1 {[%clk 0:00:17.7]} 51... Ke3 {[%clk 0:00:15.7]} 52. Nb3
{[%clk 0:00:17.6]} 52... Kf3 {[%clk 0:00:15.7]} 53. Nd4+ {[%clk 0:00:18.1]}
53... Kxg3 {[%clk 0:00:16.2]} 54. f5 {[%clk 0:00:18.5]} 54... gxf5 {[%clk
0:00:15.7]} 55. Nxf5+ {[%clk 0:00:18.1]} 55... Kg4 {[%clk 0:00:16.6]} 56. Ng7
{[%clk 0:00:18.2]} 56... Kxh4 {[%clk 0:00:16.8]} 57. a4 {[%clk 0:00:18.3]} 57...
Kg5 {[%clk 0:00:16.5]} 58. Nxh5 {[%clk 0:00:17]} 1-0

[Event "*** SCC Grand Prix: Titled Tuesday Blitz"]
[Site "Chess.com"]
[Date "2020.10.06"]
[Round "6"]
[White "QuintilianoR"]
[Black "Teo2000"]
[Result "1-0"]
[WhiteElo "2588"]
[BlackElo "2414"]
[TimeControl "180+1"]
[EndTime "11:08:49 PDT"]
[Termination "QuintilianoR won on time"]

1. Nf3 {[%clk 0:03:00.9]} 1... d6 {[%clk 0:02:57.2]} 2. d4 {[%clk 0:02:59.6]}
2... Bg4 {[%clk 0:02:56.5]} 3. e4 {[%clk 0:02:58.9]} 3... Nd7 {[%clk 0:02:55.2]}
4. h3 {[%clk 0:02:57.5]} 4... Bh5 {[%clk 0:02:53.1]} 5. Nc3 {[%clk 0:02:56.5]}
5... e5 {[%clk 0:02:52.4]} 6. g4 {[%clk 0:02:55.7]} 6... Bg6 {[%clk 0:02:52]} 7.
h4 {[%clk 0:02:34.7]} 7... h5 {[%clk 0:02:37.2]} 8. g5 {[%clk 0:02:33.5]} 8...
c6 {[%clk 0:02:18.9]} 9. Be3 {[%clk 0:02:24.7]} 9... Qc7 {[%clk 0:02:16]} 10.
Qd2 {[%clk 0:02:22.3]} 10... Ne7 {[%clk 0:02:16]} 11. O-O-O {[%clk 0:02:20]}
11... Nc8 {[%clk 0:01:52.7]} 12. Bh3 {[%clk 0:01:53.6]} 12... Ncb6 {[%clk
0:01:51.7]} 13. Rhe1 {[%clk 0:01:47.7]} 13... Nc4 {[%clk 0:01:37.8]} 14. Qd3
{[%clk 0:01:47]} 14... Nxe3 {[%clk 0:01:37.8]} 15. Qxe3 {[%clk 0:01:42.3]} 15...
exd4 {[%clk 0:01:05.8]} 16. Nxd4 {[%clk 0:01:39.7]} 16... O-O-O {[%clk 0:01:02]}
17. f4 {[%clk 0:01:34.1]} 17... Kb8 {[%clk 0:00:58]} 18. Kb1 {[%clk 0:00:31.8]}
18... Nb6 {[%clk 0:00:56.9]} 19. Nf3 {[%clk 0:00:26.5]} 19... f6 {[%clk
0:00:41.1]} 20. Nd4 {[%clk 0:00:24]} 20... Bf7 {[%clk 0:00:40.3]} 21. Be6 {[%clk
0:00:20.5]} 21... fxg5 {[%clk 0:00:23.4]} 22. hxg5 {[%clk 0:00:19.7]} 22... g6
{[%clk 0:00:23.2]} 23. f5 {[%clk 0:00:18.7]} 23... Bg7 {[%clk 0:00:09.5]} 24. f6
{[%clk 0:00:18.1]} 24... Bf8 {[%clk 0:00:09.4]} 25. Qf4 {[%clk 0:00:17.6]} 25...
c5 {[%clk 0:00:06.5]} 26. Ndb5 {[%clk 0:00:17.3]} 26... Bxe6 {[%clk 0:00:06.2]}
27. Nxc7 {[%clk 0:00:17]} 27... Kxc7 {[%clk 0:00:07.1]} 28. Nd5+ {[%clk
0:00:14.4]} 28... Nxd5 {[%clk 0:00:05.5]} 29. exd5 {[%clk 0:00:14.3]} 29... Bf5
{[%clk 0:00:06.1]} 30. Re6 {[%clk 0:00:13.4]} 30... h4 {[%clk 0:00:03.9]} 31.
Rde1 {[%clk 0:00:13.6]} 31... h3 {[%clk 0:00:04.3]} 32. Qh2 {[%clk 0:00:13]}
32... Rh4 {[%clk 0:00:04.2]} 33. b3 {[%clk 0:00:12.8]} 33... Rg4 {[%clk
0:00:03.9]} 34. Re7+ {[%clk 0:00:13]} 34... Bxe7 {[%clk 0:00:03.9]} 35. Rxe7+
{[%clk 0:00:13.7]} 35... Rd7 {[%clk 0:00:04.2]} 36. Kb2 {[%clk 0:00:14.2]} 36...
Rxe7 {[%clk 0:00:04.1]} 37. fxe7 {[%clk 0:00:13.5]} 37... Kd7 {[%clk 0:00:05]}
38. Qxh3 {[%clk 0:00:13.5]} 38... Re4 {[%clk 0:00:04.8]} 39. Qh7 {[%clk
0:00:13.9]} 39... Rxe7 {[%clk 0:00:05.2]} 40. Qh8 {[%clk 0:00:14.8]} 40... Kc7
{[%clk 0:00:05.1]} 41. Qf6 {[%clk 0:00:15.1]} 41... Rd7 {[%clk 0:00:05.4]} 42.
c4 {[%clk 0:00:12.6]} 42... Rd8 {[%clk 0:00:05.7]} 43. a4 {[%clk 0:00:11.6]}
43... Rd7 {[%clk 0:00:05.5]} 44. Ka3 {[%clk 0:00:11.7]} 44... a5 {[%clk
0:00:04.9]} 45. Qc3 {[%clk 0:00:10.6]} 45... Kb6 {[%clk 0:00:04.4]} 46. Qh8
{[%clk 0:00:11.5]} 46... Kc7 {[%clk 0:00:02.9]} 47. Qa8 {[%clk 0:00:11.5]} 47...
Kb6 {[%clk 0:00:03.3]} 48. Qc8 {[%clk 0:00:10.8]} 48... Rc7 {[%clk 0:00:02.5]}
49. Qd8 {[%clk 0:00:11.2]} 1-0

[Event "*** SCC Grand Prix: Titled Tuesday Blitz"]
[Site "Chess.com"]
[Date "2020.10.06"]
[Round "6"]
[White "Evandro_Barbosa"]
[Black "keepitcoming"]
[Result "1-0"]
[WhiteElo "2614"]
[BlackElo "2470"]
[TimeControl "180+1"]
[EndTime "11:08:50 PDT"]
[Termination "Evandro_Barbosa won on time"]

1. e4 {[%clk 0:03:00.9]} 1... c6 {[%clk 0:02:59.9]} 2. d4 {[%clk 0:03:00.5]}
2... d5 {[%clk 0:03:00.8]} 3. Nc3 {[%clk 0:03:00.5]} 3... dxe4 {[%clk
0:03:01.2]} 4. Nxe4 {[%clk 0:03:01.4]} 4... Nf6 {[%clk 0:03:01.8]} 5. Nxf6+
{[%clk 0:03:01.1]} 5... exf6 {[%clk 0:03:02.7]} 6. c3 {[%clk 0:03:00.9]} 6...
Bf5 {[%clk 0:03:02.1]} 7. Bd3 {[%clk 0:02:58.1]} 7... Bxd3 {[%clk 0:03:01.8]} 8.
Qxd3 {[%clk 0:02:59]} 8... Bd6 {[%clk 0:03:02]} 9. Nf3 {[%clk 0:02:58.6]} 9...
O-O {[%clk 0:03:01.4]} 10. O-O {[%clk 0:02:59.5]} 10... Na6 {[%clk 0:02:54.9]}
11. Re1 {[%clk 0:02:48.3]} 11... Nc5 {[%clk 0:02:42.4]} 12. Qc4 {[%clk 0:02:37]}
12... Ne6 {[%clk 0:02:41.4]} 13. a4 {[%clk 0:02:35.9]} 13... Re8 {[%clk
0:02:38.9]} 14. Bd2 {[%clk 0:02:34.9]} 14... a5 {[%clk 0:02:31.5]} 15. Qb3
{[%clk 0:02:33.9]} 15... Qc7 {[%clk 0:02:27.7]} 16. g3 {[%clk 0:02:29.9]} 16...
g6 {[%clk 0:02:22.1]} 17. c4 {[%clk 0:02:26.7]} 17... f5 {[%clk 0:02:18.3]} 18.
Rac1 {[%clk 0:02:15.3]} 18... Rad8 {[%clk 0:02:12]} 19. Bc3 {[%clk 0:02:03.4]}
19... Bf8 {[%clk 0:02:12.1]} 20. Qc2 {[%clk 0:01:50.5]} 20... Bg7 {[%clk
0:02:06.4]} 21. Rcd1 {[%clk 0:01:50.4]} 21... f4 {[%clk 0:01:58.1]} 22. d5
{[%clk 0:01:43]} 22... Bxc3 {[%clk 0:01:44.2]} 23. Qxc3 {[%clk 0:01:35.5]} 23...
cxd5 {[%clk 0:01:43.4]} 24. cxd5 {[%clk 0:01:34.1]} 24... Qxc3 {[%clk 0:01:17]}
25. bxc3 {[%clk 0:01:35]} 25... Nc5 {[%clk 0:01:17.5]} 26. Rxe8+ {[%clk
0:01:32.7]} 26... Rxe8 {[%clk 0:01:17.6]} 27. Rd4 {[%clk 0:01:33.2]} 27... fxg3
{[%clk 0:01:10.7]} 28. hxg3 {[%clk 0:01:31.6]} 28... Kg7 {[%clk 0:01:11.2]} 29.
Rc4 {[%clk 0:01:29.4]} 29... b6 {[%clk 0:01:09.6]} 30. Rd4 {[%clk 0:01:22.5]}
30... Kf6 {[%clk 0:00:59.3]} 31. Kg2 {[%clk 0:01:20.5]} 31... Re2 {[%clk
0:00:53.4]} 32. Rf4+ {[%clk 0:01:17.5]} 32... Ke7 {[%clk 0:00:50.4]} 33. Nd4
{[%clk 0:01:17.9]} 33... Ra2 {[%clk 0:00:44]} 34. Nb5 {[%clk 0:01:05.1]} 34...
Rxa4 {[%clk 0:00:40.9]} 35. d6+ {[%clk 0:01:02.9]} 35... Ke6 {[%clk 0:00:36.8]}
36. Rf3 {[%clk 0:00:58.6]} 36... Re4 {[%clk 0:00:26.7]} 37. Nd4+ {[%clk
0:00:36.2]} 37... Kxd6 {[%clk 0:00:19.5]} 38. Rxf7 {[%clk 0:00:35.2]} 38... Re7
{[%clk 0:00:18.4]} 39. Rf6+ {[%clk 0:00:35.1]} 39... Kc7 {[%clk 0:00:15.8]} 40.
Nb5+ {[%clk 0:00:31.9]} 40... Kb7 {[%clk 0:00:16.1]} 41. f3 {[%clk 0:00:29]}
41... a4 {[%clk 0:00:15.9]} 42. g4 {[%clk 0:00:28.5]} 42... Ka6 {[%clk
0:00:14.1]} 43. Na3 {[%clk 0:00:27.8]} 43... Re2+ {[%clk 0:00:13.3]} 44. Kg3
{[%clk 0:00:27.5]} 44... Ra2 {[%clk 0:00:14.2]} 45. Nc4 {[%clk 0:00:27.7]} 45...
a3 {[%clk 0:00:13.6]} 46. Rxb6+ {[%clk 0:00:27.5]} 46... Ka7 {[%clk 0:00:14.1]}
47. Rb5 {[%clk 0:00:27.9]} 47... Nd3 {[%clk 0:00:10.4]} 48. Ra5+ {[%clk
0:00:26.8]} 48... Kb7 {[%clk 0:00:10.8]} 49. Rxa3 {[%clk 0:00:26]} 49... Rxa3
{[%clk 0:00:10.7]} 50. Nxa3 {[%clk 0:00:25.6]} 50... Kc6 {[%clk 0:00:11.2]} 51.
Nc4 {[%clk 0:00:23.7]} 51... Kc5 {[%clk 0:00:09.9]} 52. Ne3 {[%clk 0:00:24.2]}
52... g5 {[%clk 0:00:08.6]} 53. Nf5 {[%clk 0:00:17.9]} 53... Kc4 {[%clk
0:00:06]} 54. Nd6+ {[%clk 0:00:17.9]} 54... Kd5 {[%clk 0:00:03.3]} 55. Nf7
{[%clk 0:00:18.8]} 1-0

[Event "*** SCC Grand Prix: Titled Tuesday Blitz"]
[Site "Chess.com"]
[Date "2020.10.06"]
[Round "6"]
[White "Grandelicious"]
[Black "remi04"]
[Result "1/2-1/2"]
[WhiteElo "2782"]
[BlackElo "2559"]
[TimeControl "180+1"]
[EndTime "11:08:53 PDT"]
[Termination "Game drawn by repetition"]

1. Nf3 {[%clk 0:03:00.9]} 1... Nf6 {[%clk 0:02:59.6]} 2. g3 {[%clk 0:03:00.9]}
2... d5 {[%clk 0:02:58.6]} 3. Bg2 {[%clk 0:03:00.6]} 3... e6 {[%clk 0:02:58.6]}
4. O-O {[%clk 0:03:00.6]} 4... Be7 {[%clk 0:02:57.7]} 5. c4 {[%clk 0:03:01.1]}
5... O-O {[%clk 0:02:56.2]} 6. b3 {[%clk 0:03:01.5]} 6... b6 {[%clk 0:02:55.8]}
7. cxd5 {[%clk 0:03:01.2]} 7... exd5 {[%clk 0:02:55.6]} 8. d4 {[%clk 0:03:01.1]}
8... c5 {[%clk 0:02:54.8]} 9. Nc3 {[%clk 0:02:56.6]} 9... Nc6 {[%clk 0:02:54.5]}
10. dxc5 {[%clk 0:02:53.8]} 10... Bxc5 {[%clk 0:02:52.2]} 11. Bg5 {[%clk
0:02:50.5]} 11... Be6 {[%clk 0:02:15.9]} 12. Bxf6 {[%clk 0:02:45.7]} 12... Qxf6
{[%clk 0:02:15.6]} 13. Nxd5 {[%clk 0:02:45.9]} 13... Bxd5 {[%clk 0:02:16]} 14.
Qxd5 {[%clk 0:02:46.8]} 14... Rad8 {[%clk 0:02:16.3]} 15. Qc4 {[%clk 0:02:42.3]}
15... Ne5 {[%clk 0:02:08.7]} 16. Nxe5 {[%clk 0:02:36.1]} 16... Qxe5 {[%clk
0:02:08.9]} 17. Qa6 {[%clk 0:02:27.9]} 17... Rd2 {[%clk 0:02:04.2]} 18. e3
{[%clk 0:02:27.6]} 18... Rxf2 {[%clk 0:01:55.2]} 19. Rxf2 {[%clk 0:02:17.8]}
19... Qxa1+ {[%clk 0:01:54.5]} 20. Rf1 {[%clk 0:02:18.4]} 20... Bxe3+ {[%clk
0:01:49.5]} 21. Kh1 {[%clk 0:02:19]} 21... Qe5 {[%clk 0:01:48.3]} 22. Qxa7
{[%clk 0:02:16.6]} 22... h5 {[%clk 0:01:47.7]} 23. Qb7 {[%clk 0:02:07.4]} 23...
Bc5 {[%clk 0:01:24.6]} 24. Bd5 {[%clk 0:01:57.5]} 24... Kh8 {[%clk 0:01:16.4]}
25. Bxf7 {[%clk 0:01:41.6]} 25... h4 {[%clk 0:01:13.1]} 26. Qg2 {[%clk
0:01:31.3]} 26... Qc7 {[%clk 0:01:02.4]} 27. Bd5 {[%clk 0:01:21.9]} 27... Qd8
{[%clk 0:00:44.5]} 28. Rd1 {[%clk 0:01:07.9]} 28... Qg5 {[%clk 0:00:43.4]} 29.
gxh4 {[%clk 0:01:01.8]} 29... Qxh4 {[%clk 0:00:40.6]} 30. Bf3 {[%clk 0:00:33]}
30... Be3 {[%clk 0:00:36.3]} 31. a4 {[%clk 0:00:30.1]} 31... Bf4 {[%clk
0:00:23.2]} 32. Be4 {[%clk 0:00:29.5]} 32... Bc7 {[%clk 0:00:18.7]} 33. h3
{[%clk 0:00:23.7]} 33... Rf2 {[%clk 0:00:16.1]} 34. Rf1 {[%clk 0:00:11.8]} 34...
Rxf1+ {[%clk 0:00:12.8]} 35. Qxf1 {[%clk 0:00:12.7]} 35... Qxe4+ {[%clk
0:00:13]} 36. Kg1 {[%clk 0:00:12.5]} 36... Qe3+ {[%clk 0:00:11]} 37. Kh1 {[%clk
0:00:11.6]} 37... Qe4+ {[%clk 0:00:10.3]} 38. Kg1 {[%clk 0:00:11.6]} 38... Bd6
{[%clk 0:00:10.5]} 39. Qf7 {[%clk 0:00:05.4]} 39... Qe3+ {[%clk 0:00:08.3]} 40.
Kg2 {[%clk 0:00:04.8]} 40... Qg3+ {[%clk 0:00:08.2]} 41. Kf1 {[%clk 0:00:05.1]}
41... Qxh3+ {[%clk 0:00:08.6]} 42. Ke2 {[%clk 0:00:05.7]} 42... Qg2+ {[%clk
0:00:08.3]} 43. Kd3 {[%clk 0:00:06.1]} 43... Qg3+ {[%clk 0:00:08.3]} 44. Kc2
{[%clk 0:00:05.3]} 44... Be5 {[%clk 0:00:05.8]} 45. Qh5+ {[%clk 0:00:04.3]}
45... Kg8 {[%clk 0:00:05]} 46. Qe8+ {[%clk 0:00:05]} 46... Kh7 {[%clk
0:00:04.9]} 47. Qh5+ {[%clk 0:00:05.9]} 47... Kg8 {[%clk 0:00:03.5]} 48. Qe8+
{[%clk 0:00:06.8]} 48... Kh7 {[%clk 0:00:02.5]} 49. Qh5+ {[%clk 0:00:07.7]}
49... Kg8 {[%clk 0:00:03.4]} 1/2-1/2